bitfinex/quotes_ETHUSD_20251119
["timestamp","ask_amount","ask_price","bid_price","bid_amount"]
[1763534594319,0.98149264,3047.2,3047.1,0.001]
[1763534594611,1.45229264,3047.2,3047.1,0.001]
[1763534595616,0.98149264,3047.2,3047.1,0.001]
[1763534595780,1.45229264,3047.2,3047.1,0.001]
[1763534596119,0.98149264,3047.2,3047.1,0.001]
[1763534596620,0.51744544,3047.3,3047.2,0.405504]
[1763534597021,0.59194544,3047.3,3047.2,0.405504]
[1763534597380,0.51744544,3047.3,3047.2,0.405504]
[1763534597717,0.51744544,3047.3,3047.2,0.903104]
[1763534599210,0.002,3047.3,3047.2,1.377004]
[1763534599412,0.002,3047.3,3047.2,1.97672645]
[1763534599978,0.002,3047.3,3047.2,5.80790944]
[1763534603816,0.002,3047.3,3047.2,5.84072645]
[1763534604010,0.002,3047.3,3047.2,5.80790944]
[1763534606321,0.002,3047.3,3047.2,5.84072645]
[1763534606486,0.51544839,3047.4,3047.2,5.84072645]
[1763534606682,0.51544839,3047.4,3047.3,1.92327665]
[1763534608518,0.51544839,3047.4,3047.3,1.95609258]
[1763534609001,0.002,3047.9,3047.3,1.95609258]
[1763534609002,0.002,3047.9,3047.7,0.405504]
[1763534609184,0.1679,3047.9,3047.8,3.75205561]
[1763534609394,0.1679,3047.9,3047.8,4.12726117]
[1763534609729,0.7134,3047.9,3047.8,4.12726117]
[1763534616354,0.2651,3047.9,3047.8,4.12726117]
[1763534616513,0.002,3047.9,3047.8,4.12726117]
[1763534616708,0.002,3047.9,3047.8,5.13737172]
[1763534616912,0.002,3048.2,3047.9,0.405504]
[1763534617210,0.002,3048.2,3048.1,1.090304]
[1763534617618,0.002,3048.2,3048.1,1.581904]
[1763534624621,0.002,3048.2,3048.1,1.582404]
[1763534625152,0.0556,3048.2,3048.1,0.03280732]
[1763534625359,0.002,3048.2,3048.1,0.51850732]
[1763534625525,0.002,3048.2,3048.1,0.891204]
[1763534625723,0.002,3048.2,3048.1,1.382804]
[1763534626336,0.002,3048.2,3048.1,0.891204]
[1763534627245,0.002,3048.2,3048.1,0.405504]
[1763534627451,0.0556,3048.2,3048.1,0.405504]
[1763534628823,0.002,3048.2,3048.1,0.891204]
[1763534629050,0.002,3048.2,3048.1,1.582404]
[1763534630445,0.002,3048.2,3048.1,1.090804]
[1763534631754,5.248655,3048.2,3047.9,0.001]
[1763534632065,0.0554,3048.2,3047.9,0.001]
[1763534632263,0.002,3048.2,3047.9,0.001]
[1763534634171,0.4961,3048.0,3047.9,0.001]
[1763534635066,0.5495,3048.0,3047.9,0.001]
[1763534638868,0.90699264,3048.1,3048.0,0.405504]
[1763534639036,0.4958,3048.0,3047.9,0.001]
[1763534639362,0.5494,3048.0,3047.9,0.001]
[1763534641463,1.17029476,3048.0,3047.9,0.001]
[1763534641859,1.17029476,3048.0,3047.9,0.406504]
[1763534642062,1.17029476,3048.0,3047.9,0.001]
[1763534642648,0.5494,3048.0,3047.9,0.001]
[1763534642854,0.0536,3048.0,3047.9,0.001]
[1763534643155,0.545,3048.0,3047.9,0.001]
[1763534644555,0.545,3048.0,3047.9,0.406504]
[1763534644556,1.06039262,3048.0,3047.9,0.406504]
[1763534644752,2.20744215,3048.0,3047.9,0.001]
[1763534644955,2.20744215,3048.0,3047.5,0.001]
[1763534645158,5.82834764,3047.6,3047.5,0.001]
[1763534645674,6.32414764,3047.6,3047.5,0.406504]
[1763534647251,6.32414764,3047.6,3047.5,0.001]
[1763534647456,6.32414764,3047.6,3047.5,0.406504]
[1763534647457,5.82834764,3047.6,3047.5,0.406504]
[1763534647658,5.82834764,3047.6,3047.5,0.001]
[1763534648181,6.9497424,3047.6,3047.5,0.406504]
[1763534649196,6.9497424,3047.6,3047.5,0.001]
[1763534650996,0.90699264,3047.5,3047.1,0.001]
[1763534651158,5.66294764,3047.2,3047.1,0.001]
[1763534651488,6.2292424,3047.2,3047.1,0.001]
[1763534651797,6.85053853,3047.2,3047.1,0.001]
[1763534652770,2.09998353,3047.2,3047.1,0.001]
[1763534653078,1.61038353,3047.2,3047.1,0.001]
[1763534653279,0.90699264,3047.2,3047.1,0.6712]
[1763534653608,0.51560886,3047.3,3047.2,0.405504]
[1763534653755,0.51560886,3047.3,3047.2,0.889704]
[1763534654278,0.51560886,3047.3,3047.2,1.359004]
[1763534654481,0.51560886,3047.3,3047.2,0.889704]
[1763534655077,0.51560886,3047.3,3047.2,0.405504]
[1763534655270,0.51560886,3047.3,3047.2,0.889704]
[1763534655666,0.51560886,3047.3,3047.2,0.405504]
[1763534655667,0.57540886,3047.3,3047.2,0.405504]
[1763534656874,0.57540886,3047.3,3047.1,0.001]
[1763534657203,0.51560886,3047.3,3047.1,0.001]
[1763534659814,0.064,3047.2,3047.1,0.001]
[1763534660323,0.5451,3047.2,3047.1,0.001]
[1763534660545,0.48077444,3047.2,3047.1,0.001]
[1763534661449,7.46066049,3047.2,3047.1,0.001]
[1763534661615,8.25828743,3047.2,3047.1,0.001]
[1763534661803,8.38998095,3047.2,3047.1,0.001]
[1763534665244,1.8363131,3047.2,3047.1,0.001]
[1763534665397,0.93319264,3047.2,3047.1,0.001]
[1763534665739,1.38809264,3047.2,3047.1,0.001]
[1763534666095,7.46098605,3047.2,3047.1,0.001]
[1763534666655,0.93319264,3047.2,3047.1,0.001]
[1763534666804,0.90699264,3047.1,3047.0,0.001]
[1763534667125,2.16062865,3047.1,3047.0,0.001]
[1763534668416,0.0045,3047.1,3047.0,0.001]
[1763534669224,0.97479112,3047.4,3047.0,0.001]
[1763534669458,0.51559112,3047.4,3047.0,0.001]
[1763534669737,0.51559112,3047.4,3047.3,0.405504]
[1763534670246,0.54179112,3047.4,3047.3,0.405504]
[1763534672108,0.51559112,3047.4,3047.3,0.856304]
[1763534672307,0.51559112,3047.4,3047.3,1.335304]
[1763534672506,0.51559112,3047.4,3047.3,1.80348956]
[1763534673136,0.51559112,3047.4,3047.3,1.32448956]
[1763534673649,0.51559112,3047.4,3047.3,1.80348956]
[1763534674984,0.51559112,3047.4,3047.3,1.335304]
[1763534675866,0.60549112,3047.4,3047.3,0.405504]
[1763534676033,0.60549112,3047.4,3047.0,0.48]
[1763534676647,0.0899,3047.4,3047.1,0.405504]
[1763534678067,0.4592,3047.8,3047.4,0.405504]
[1763534678364,0.4592,3047.8,3047.2,0.405504]
[1763534678531,0.65416926,3047.8,3047.2,0.405504]
[1763534679055,0.1035,3047.9,3047.2,0.4715]
[1763534679268,0.1035,3047.9,3047.3,0.405504]
[1763534679859,0.5755,3047.9,3047.3,0.405504]
[1763534680040,0.51547997,3047.8,3047.3,0.405504]
[1763534680664,0.98747997,3047.8,3047.3,0.405504]
[1763534680969,0.0772,3047.4,3047.0,0.406504]
[1763534681179,0.0792,3047.4,3047.0,0.406504]
[1763534681404,0.002,3047.4,3047.3,0.897904]
[1763534681615,0.0792,3047.4,3047.3,0.405504]
[1763534684375,0.5473,3047.4,3047.3,0.405504]
[1763534687502,0.5473,3047.4,3047.0,0.001]
[1763534687700,0.0047,3047.1,3047.0,0.001]
[1763534692108,0.0047,3047.1,3047.0,0.406504]
[1763534693254,0.4767,3047.1,3047.0,0.406504]
[1763534694159,0.98562029,3047.4,3047.0,0.406504]
[1763534694354,0.51752029,3047.4,3047.3,0.897904]
[1763534694556,0.51752029,3047.4,3047.3,4.71595561]
[1763534694728,0.51752029,3047.4,3047.3,5.20617117]
[1763534694927,0.51752029,3047.4,3047.3,4.73467117]
[1763534695129,0.51752029,3047.4,3047.3,3.75205561]
[1763534695130,1.06282029,3047.4,3047.3,3.75205561]
[1763534695543,0.59472029,3047.4,3047.3,3.75205561]
[1763534695949,1.06282029,3047.4,3047.3,3.75205561]
[1763534697270,0.59472029,3047.4,3047.3,3.75205561]
[1763534697928,0.59472029,3047.4,3047.3,0.405504]
[1763534698254,0.51752029,3047.4,3047.3,0.405504]
[1763534698843,0.59862029,3047.4,3047.3,0.405504]
[1763534700140,1.06282029,3047.4,3047.3,0.405504]
[1763534701380,1.06282029,3047.4,3047.1,3.34655161]
[1763534701555,0.0046,3047.2,3047.1,3.34655161]
[1763534701745,0.51752029,3047.4,3047.2,0.405504]
[1763534701951,0.4762,3047.3,3047.2,0.405504]
[1763534702696,0.5493,3047.3,3047.2,0.405504]
[1763534703188,0.4762,3047.3,3047.2,0.405504]
[1763534704001,0.5493,3047.3,3047.2,0.405504]
[1763534705348,0.4762,3047.3,3047.2,0.405504]
[1763534706067,0.002,3047.4,3047.2,1.74470956]
[1763534706377,0.002,3047.4,3047.3,0.897904]
[1763534706876,0.002,3047.4,3047.3,0.405504]
[1763534707076,0.0849,3047.4,3047.3,0.405504]
[1763534708481,0.5474,3047.4,3047.3,0.405504]
[1763534709879,0.0849,3047.4,3047.3,0.405504]
[1763534710548,0.002,3047.4,3047.3,0.859504]
[1763534710752,0.489,3047.4,3047.3,0.405504]
[1763534712963,0.002,3047.4,3047.3,0.405504]
[1763534713284,0.002,3047.4,3047.3,0.859504]
[1763534713990,0.0849,3047.4,3047.3,0.405504]
[1763534715798,0.002,3047.4,3047.3,0.859504]
[1763534716299,0.0849,3047.4,3047.3,0.405504]
[1763534717409,0.11777001,3047.4,3047.3,0.405504]
[1763534717699,0.0849,3047.4,3047.3,0.405504]
[1763534718868,0.002,3047.4,3047.3,0.859504]
[1763534719373,0.002,3047.4,3047.3,1.339104]
[1763534720109,0.002,3047.4,3047.3,1.80766956]
[1763534722198,0.002,3047.4,3047.3,5.15422117]
[1763534724910,0.002,3047.4,3047.3,1.80766956]
[1763534725114,0.002,3047.4,3047.3,1.339104]
[1763534732229,1.37532135,3048.6,3047.4,0.405504]
[1763534732438,1.37532135,3048.6,3047.9,0.405504]
[1763534732632,0.03287001,3048.5,3047.9,0.405504]
[1763534732815,0.03287001,3048.5,3047.8,0.405504]
[1763534733427,0.002,3048.1,3047.8,0.405504]
[1763534733862,0.4778,3047.9,3047.2,0.405504]
[1763534734004,0.0658,3047.8,3047.4,0.405504]
[1763534734209,0.0658,3047.8,3047.4,0.873504]
[1763534734722,0.01,3047.5,3047.0,0.001]
[1763534734924,0.474,3047.4,3047.0,0.001]
[1763534736314,0.0959,3047.9,3047.3,0.4581]
[1763534736507,0.90699264,3047.8,3047.3,0.4581]
[1763534736708,0.90699264,3047.8,3047.4,0.405504]
[1763534736903,1.38199264,3047.8,3047.4,0.405504]
[1763534737234,1.38199264,3047.8,3047.2,0.405504]
[1763534737235,0.0742,3047.5,3047.2,0.405504]
[1763534737531,0.0047,3047.4,3047.0,0.001]
[1763534737923,0.471,3047.7,3047.1,0.405504]
[1763534738349,0.0781,3047.2,3047.0,0.001]
[1763534738649,0.0781,3047.1,3047.0,0.001]
[1763534738852,0.0781,3047.1,3047.0,0.406504]
[1763534739064,0.5452,3047.1,3047.0,0.406504]
[1763534741455,0.0781,3047.1,3047.0,0.406504]
[1763534741825,0.0781,3047.1,3047.0,0.001]
[1763534741826,0.5452,3047.1,3047.0,0.001]
[1763534742021,1.21568244,3047.1,3046.8,0.001]
[1763534742332,5.94051118,3046.9,3046.8,0.001]
[1763534742530,0.90699264,3046.9,3046.8,0.001]
[1763534742729,0.90699264,3046.9,3046.8,1.324804]
[1763534742950,0.475,3047.7,3046.8,1.324804]
[1763534743127,0.475,3047.6,3046.8,0.873204]
[1763534743783,0.475,3047.6,3046.8,1.324804]
[1763534746163,0.5709,3047.9,3047.0,0.405504]
[1763534746553,0.03287001,3047.8,3047.0,0.405504]
[1763534746734,0.5709,3047.9,3047.0,0.405504]
[1763534747752,0.51547208,3047.7,3047.0,0.405504]
[1763534748053,0.51547208,3047.7,3047.2,0.405504]
[1763534748570,0.99047208,3047.7,3047.2,0.405504]
[1763534749646,0.51547208,3047.7,3047.4,0.405504]
[1763534749848,0.51547208,3047.7,3047.6,0.872204]
[1763534750058,0.51547208,3047.7,3047.6,0.405504]
[1763534750875,0.97127208,3047.7,3047.6,0.405504]
[1763534751378,0.51547208,3047.7,3047.6,0.405504]
[1763534751574,0.51547208,3047.7,3047.6,0.872204]
[1763534751951,0.68457208,3047.7,3047.6,0.405504]
[1763534752859,1.06167208,3047.7,3047.6,0.405504]
[1763534753386,0.51547208,3047.7,3047.6,0.405504]
[1763534753552,0.51547208,3047.7,3047.6,0.872204]
[1763534754106,0.51547208,3047.7,3047.6,0.405504]
[1763534754789,0.68667208,3047.7,3047.6,0.405504]
[1763534757770,0.5462,3047.7,3047.6,0.405504]
[1763534759864,0.1712,3047.7,3047.6,0.405504]
[1763534760066,0.5462,3047.7,3047.6,0.405504]
[1763534760302,0.1712,3047.7,3047.6,0.405504]
[1763534760520,0.4709,3048.0,3047.7,0.405504]
[1763534760723,0.002,3048.1,3048.0,0.405504]
[1763534761169,0.0762,3048.1,3048.0,0.405504]
[1763534761563,0.5472,3048.1,3048.0,0.405504]
[1763534762363,0.5472,3048.1,3047.8,3.34655161]
[1763534762725,0.5472,3048.1,3046.8,0.1942]
[1763534762726,0.1006,3047.9,3046.8,0.001]
[1763534763016,0.0735,3046.9,3046.8,0.001]
[1763534763184,0.50457001,3047.8,3046.8,0.001]
[1763534763185,0.4717,3047.8,3046.8,0.001]
[1763534763380,0.00493806,3047.6,3046.8,0.001]
[1763534763614,0.03287001,3047.5,3046.8,0.001]
[1763534763939,0.50787001,3047.5,3046.8,0.001]
[1763534764219,0.0742,3046.9,3046.8,0.001]
[1763534765115,0.00493806,3047.6,3046.9,0.405504]
[1763534765416,0.475,3047.5,3046.9,0.405504]
[1763534765710,0.0742,3047.0,3046.8,0.001]
[1763534765910,0.4558,3046.9,3046.8,0.001]
[1763534766479,0.03287001,3047.7,3046.9,0.405504]
[1763534766703,0.51437001,3047.7,3046.9,0.405504]
[1763534766890,0.0678,3047.0,3046.9,0.405504]
[1763534769110,0.0678,3047.0,3046.8,0.001]
[1763534769111,0.90699264,3046.9,3046.8,0.001]
[1763534769296,1.69851924,3046.9,3046.8,0.001]
[1763534769617,2.18001924,3046.9,3046.8,0.001]
[1763534770801,1.2730266,3046.9,3046.8,0.001]
[1763534771019,0.65713907,3046.9,3046.8,0.001]
[1763534771624,0.96477012,3046.9,3046.8,0.001]
[1763534772631,0.99764013,3046.9,3046.8,0.001]
[1763534773004,1.12936358,3046.9,3046.8,0.001]
[1763534774110,1.12936358,3046.9,3046.6,0.001]
[1763534774111,1.55613502,3046.9,3046.6,0.001]
[1763534774418,7.83276141,3046.8,3046.6,0.001]
[1763534774733,0.0678,3046.5,3046.1,0.001]
[1763534774938,0.4569,3046.2,3045.4,0.001]
[1763534775109,0.03287001,3046.6,3045.4,0.001]
[1763534775110,6.98143036,3046.0,3045.4,0.001]
[1763534775328,0.2327,3045.7,3045.4,0.001]
[1763534775519,0.711,3045.7,3045.4,0.001]
[1763534775713,1.69940436,3045.7,3045.4,0.001]
[1763534776531,2.1261758,3045.7,3045.4,0.001]
[1763534776736,2.4327113,3045.7,3045.4,0.001]
[1763534776937,0.0048,3045.5,3045.4,0.001]
[1763534777139,6.07833772,3045.5,3045.4,0.001]
[1763534777348,7.46683036,3045.5,3045.4,0.001]
[1763534778250,7.63291213,3045.5,3045.4,0.001]
[1763534778547,8.53288554,3045.5,3045.4,0.001]
[1763534780260,0.90699264,3045.4,3045.0,15.001]
[1763534780435,0.0632,3045.1,3045.0,15.001]
[1763534780958,0.5447,3045.1,3045.0,15.001]
[1763534781251,1.45169264,3045.1,3045.0,15.001]
[1763534781463,1.45169264,3045.1,3045.0,9.32731552]
[1763534781641,1.45169264,3045.1,3045.0,9.15731552]
[1763534782043,0.97019264,3045.1,3045.0,9.15731552]
[1763534782351,1.45169264,3045.1,3045.0,9.15731552]
[1763534784538,0.97019264,3045.1,3045.0,9.15731552]
[1763534784757,1.45219264,3045.1,3045.0,9.15731552]
[1763534785252,1.45219264,3045.1,3045.0,9.15831552]
[1763534785564,1.45419264,3045.1,3044.6,0.001]
[1763534785761,0.0547,3044.4,3044.1,0.001]
[1763534785935,6.98583036,3044.2,3044.1,0.001]
[1763534786140,7.6844134,3044.2,3044.1,0.001]
[1763534786448,8.3709134,3044.2,3044.1,0.001]
[1763534789234,0.90699264,3044.1,3042.6,0.4518]
[1763534789430,1.42976265,3044.1,3042.8,0.4518]
[1763534789636,1.42515492,3044.0,3042.8,0.4518]
[1763534789835,1.42515492,3044.0,3042.9,0.4518]
[1763534790062,0.5858,3043.9,3043.1,0.1976]
[1763534790566,0.5858,3043.9,3043.2,0.405504]
[1763534790567,0.0959,3043.9,3043.2,0.405504]
[1763534790757,0.1966,3044.2,3043.8,0.4715]
[1763534790954,0.002,3045.1,3044.1,0.6681]
[1763534791155,0.4715,3044.8,3044.7,0.4715]
[1763534791355,0.002,3045.1,3044.7,0.4715]
[1763534791652,0.4899,3045.4,3044.7,0.4715]
[1763534791653,0.4715,3045.0,3044.7,0.4715]
[1763534792059,0.4715,3045.0,3044.9,0.4715]
[1763534792385,0.002,3045.5,3044.9,0.4715]
[1763534792550,0.4715,3045.4,3044.9,0.9233]
[1763534792868,0.4715,3045.4,3045.3,0.4715]
[1763534793045,0.4715,3045.4,3045.0,0.4518]
[1763534793847,0.4715,3045.4,3045.3,0.4715]
[1763534794863,0.03487001,3045.5,3045.3,0.9233]
[1763534795051,0.002,3045.5,3045.1,0.1966]
[1763534795251,0.4735,3045.5,3045.1,0.1966]
[1763534795438,0.03287001,3045.4,3045.1,0.1966]
[1763534795839,0.98944261,3045.5,3045.1,0.1966]
[1763534796042,0.98944261,3045.5,3045.1,0.6484]
[1763534796437,0.98944261,3045.5,3045.4,0.4945]
[1763534796739,0.51794261,3045.5,3045.4,0.9661]
[1763534797155,0.51794261,3045.5,3045.4,1.371604]
[1763534798439,0.002,3045.5,3045.4,1.371604]
[1763534799366,0.002,3045.5,3045.4,0.9661]
[1763534800441,0.002,3045.5,3045.4,0.4945]
[1763534800641,0.002,3045.5,3045.4,0.9661]
[1763534801484,0.002,3045.5,3045.2,0.405504]
[1763534801842,0.51787233,3045.5,3045.4,0.4945]
[1763534802136,0.51787233,3045.5,3045.2,0.4716]
[1763534802969,0.03287001,3045.4,3045.2,0.4716]
[1763534803967,0.03287001,3045.4,3045.1,0.1966]
[1763534804139,0.55074234,3045.5,3045.1,0.1966]
[1763534804466,0.51787233,3045.5,3045.4,0.4945]
[1763534804669,0.51787233,3045.5,3045.1,0.1966]
[1763534804849,0.03287001,3045.4,3045.1,0.1966]
[1763534805253,0.03287001,3045.4,3045.1,0.6682]
[1763534805459,0.03287001,3045.4,3045.0,0.001]
[1763534805666,0.03287001,3045.4,3045.1,0.4716]
[1763534805866,0.51787233,3045.5,3045.3,0.4945]
[1763534806280,0.51787233,3045.5,3045.1,0.4716]
[1763534807450,0.98947233,3045.5,3045.1,0.4716]
[1763534807749,0.03287001,3045.4,3045.1,0.4716]
[1763534807948,0.98947233,3045.5,3045.1,0.4716]
[1763534809550,0.98947233,3045.5,3045.0,0.001]
[1763534809752,0.03287001,3045.4,3045.0,0.4726]
[1763534809947,0.03287001,3045.4,3045.0,0.001]
[1763534810149,0.1473,3045.1,3045.0,0.001]
[1763534810385,0.18017001,3045.1,3045.0,0.001]
[1763534810694,0.78132777,3045.1,3045.0,0.001]
[1763534811050,0.1473,3045.1,3045.0,0.001]
[1763534811878,0.405504,3045.3,3045.0,0.4955]
[1763534812081,0.405504,3045.3,3045.1,0.1941]
[1763534812281,0.03287001,3045.3,3045.2,0.4945]
[1763534812478,0.03487001,3045.5,3045.2,0.9661]
[1763534812809,0.405504,3045.4,3045.1,0.1941]
[1763534812963,0.03287001,3045.3,3045.1,0.1941]
[1763534813169,0.03287001,3045.3,3045.0,0.001]
[1763534813976,0.405504,3045.4,3045.2,0.4945]
[1763534814624,0.405504,3045.4,3045.3,0.4945]
[1763534815566,0.92146773,3045.4,3045.3,0.4945]
[1763534817101,1.06876773,3045.4,3045.0,0.001]
[1763534817417,0.03287001,3045.3,3045.0,0.001]
[1763534818067,0.1499,3045.1,3045.0,0.001]
[1763534818494,0.03287001,3045.3,3045.0,0.4955]
[1763534819214,0.34038158,3045.3,3045.0,0.4955]
[1763534819566,0.03287001,3045.3,3045.0,0.4955]
[1763534820298,0.1473,3045.1,3045.0,0.001]
[1763534820487,0.30751157,3045.1,3045.0,0.001]
[1763534820682,0.1473,3045.1,3045.0,0.001]
[1763534820879,1.38769255,3045.1,3045.0,0.001]
[1763534821093,2.57131371,3045.1,3045.0,0.001]
[1763534821292,3.2810261,3045.1,3045.0,0.001]
[1763534821480,3.73188087,3045.1,3045.0,0.001]
[1763534821696,4.60823478,3045.1,3045.0,0.001]
[1763534822787,4.20613478,3045.1,3045.0,0.001]
[1763534822989,1.29385248,3045.1,3045.0,0.001]
[1763534823187,1.47662249,3045.1,3045.0,0.001]
[1763534823387,0.49028158,3045.1,3045.0,0.001]
[1763534825179,0.18277001,3045.1,3045.0,0.001]
[1763534829206,0.69879651,3045.1,3045.0,0.001]
[1763534829413,1.00630808,3045.1,3045.0,0.001]
[1763534831211,1.40590808,3045.1,3045.0,0.001]
[1763534831410,0.90699264,3045.0,3044.7,0.001]
[1763534831610,0.1438,3044.7,3044.4,0.001]
[1763534831910,7.61553948,3044.5,3044.4,0.001]
[1763534832087,10.0647659,3044.5,3044.4,0.001]
[1763534832299,11.35394876,3044.5,3044.4,0.001]
[1763534832479,10.4668659,3044.5,3044.4,0.001]
[1763534833212,3.50001906,3044.5,3044.4,0.001]
[1763534833419,1.21450421,3044.5,3044.4,0.001]
[1763534833802,1.61920421,3044.5,3044.4,0.001]
[1763534835714,2.47164243,3044.5,3044.4,0.001]
[1763534835918,1.61920421,3044.5,3044.4,0.001]
[1763534836219,1.21450421,3044.5,3044.4,0.001]
[1763534836402,1.80883163,3044.5,3044.4,0.001]
[1763534837609,2.51734616,3044.5,3044.4,0.001]
[1763534837811,2.66374616,3044.5,3044.4,0.001]
[1763534838085,2.51734616,3044.5,3044.4,0.001]
[1763534838290,2.11524616,3044.5,3044.4,0.001]
[1763534838486,2.11524616,3044.5,3044.3,0.001]
[1763534838487,0.90699264,3044.4,3044.3,0.001]
[1763534838724,2.34143863,3044.4,3044.0,0.001]
[1763534838890,2.80883046,3044.3,3044.0,0.001]
[1763534839086,0.1464,3044.1,3044.0,0.001]
[1763534839290,0.95182254,3044.1,3044.0,0.001]
[1763534839496,1.60239042,3044.1,3044.0,0.001]
[1763534840023,1.20289042,3044.1,3044.0,0.001]
[1763534840185,1.23576043,3044.1,3044.0,0.001]
[1763534840394,1.63526043,3044.1,3044.0,0.001]
[1763534840596,1.63526043,3044.1,3043.7,0.001]
[1763534840797,7.61553948,3043.8,3043.7,0.001]
[1763534841012,9.62361317,3043.8,3043.7,0.001]
[1763534841214,9.62361317,3043.8,3043.7,0.9661]
[1763534841215,2.20681294,3043.8,3043.7,0.9661]
[1763534841402,1.81580421,3043.8,3043.7,0.001]
[1763534841606,1.84867422,3043.8,3043.7,0.001]
[1763534842094,1.41110421,3043.8,3043.7,0.001]
[1763534842503,1.92730171,3043.8,3043.7,0.001]
[1763534842815,1.92730171,3043.8,3043.7,0.4888]
[1763534843021,2.12003188,3043.8,3043.7,0.4888]
[1763534843221,2.12003188,3043.8,3043.7,0.001]
[1763534843825,0.90699264,3043.7,3043.1,0.1832]
[1763534844021,1.37116514,3043.6,3043.1,0.6695]
[1763534844212,1.06365357,3043.6,3043.1,0.6695]
[1763534844534,1.06365357,3043.6,3043.2,0.4863]
[1763534844698,1.06365357,3043.6,3043.5,0.4679]
[1763534844905,1.06365357,3043.6,3043.2,0.4863]
[1763534845322,1.06365357,3043.6,3043.5,0.4679]
[1763534845523,0.19706462,3043.5,3043.1,0.001]
[1763534845724,0.03287001,3043.4,3043.1,0.001]
[1763534845931,0.03287001,3043.4,3043.1,0.6695]
[1763534846233,0.19706462,3043.5,3043.1,0.001]
[1763534846421,0.03287001,3043.4,3043.1,0.1832]
[1763534846623,0.19706462,3043.5,3043.4,0.4679]
[1763534847329,0.19706462,3043.5,3043.1,0.1832]
[1763534847507,0.19706462,3043.5,3043.1,0.6695]
[1763534847838,0.03287001,3043.4,3043.1,0.6695]
[1763534848032,0.03287001,3043.4,3043.1,0.001]
[1763534848234,0.1439,3043.2,3043.1,0.001]
[1763534848910,0.46599431,3043.3,3043.1,0.001]
[1763534849111,0.6327,3043.2,3043.1,0.001]
[1763534849306,0.4863,3043.2,3043.1,0.001]
[1763534849517,0.6327,3043.2,3043.1,0.001]
[1763534849717,8.6033038,3043.2,3043.1,0.001]
[1763534849920,9.76859158,3043.2,3043.1,0.001]
[1763534850354,9.70209727,3043.2,3043.1,0.001]
[1763534850551,9.30259727,3043.2,3043.1,0.001]
[1763534851021,9.70209727,3043.2,3043.1,0.001]
[1763534851225,9.30259727,3043.2,3043.1,0.001]
[1763534852635,2.75032891,3043.2,3043.1,0.001]
[1763534852822,1.70015081,3043.2,3043.1,0.4689]
[1763534853029,1.70015081,3043.2,3043.1,1.1374]
[1763534853239,1.39329264,3043.2,3043.1,1.1374]
[1763534853435,1.39329264,3043.2,3043.1,0.6511]
[1763534853636,1.39329264,3043.2,3043.1,0.4689]
[1763534853859,1.39329264,3043.2,3043.1,0.001]
[1763534856127,1.90964315,3043.2,3043.1,0.001]
[1763534856329,2.10389447,3043.2,3043.1,0.001]
[1763534856533,3.00930175,3043.2,3043.1,0.001]
[1763534856728,4.54073228,3043.2,3043.1,0.001]
[1763534856946,4.13863228,3043.2,3043.1,0.001]
[1763534857754,4.54073228,3043.2,3043.1,0.001]
[1763534858341,3.99473228,3043.2,3043.1,0.4523]
[1763534858546,2.80410744,3043.2,3043.1,0.001]
[1763534858758,2.83697745,3043.2,3043.1,0.001]
[1763534859154,3.5449048,3043.2,3043.1,0.001]
[1763534859555,3.10733479,3043.2,3043.1,0.001]
[1763534859753,2.39940744,3043.2,3043.1,0.001]
[1763534860157,3.10770557,3043.2,3043.1,1.0923]
[1763534860356,2.20515612,3043.2,3043.1,1.0923]
[1763534861067,2.39708544,3043.2,3043.1,0.6372]
[1763534861873,2.39708544,3043.2,3043.1,0.4523]
[1763534863479,2.63679398,3043.2,3043.1,0.001]
[1763534863975,3.15316913,3043.2,3043.1,0.6372]
[1763534864175,2.91346059,3043.2,3043.1,0.001]
[1763534864871,2.91346059,3043.2,3043.1,0.4523]
[1763534865075,2.91346059,3043.2,3043.1,0.001]
[1763534865274,3.05736059,3043.2,3043.1,0.001]
[1763534865437,3.0902306,3043.2,3043.1,0.001]
[1763534865640,3.48796195,3043.2,3043.1,0.001]
[1763534866367,10.45480879,3043.2,3043.1,0.001]
[1763534866566,11.30987119,3043.2,3043.1,0.001]
[1763534866767,12.19695405,3043.2,3043.1,0.001]
[1763534868250,11.30987119,3043.2,3043.1,0.001]
[1763534868774,10.90777119,3043.2,3043.1,0.001]
[1763534869345,11.30987119,3043.2,3043.1,0.001]
[1763534869773,10.90777119,3043.2,3043.1,0.001]
[1763534870283,11.30987119,3043.2,3043.1,0.001]
[1763534870492,10.90777119,3043.2,3043.1,0.001]
[1763534871247,11.30987119,3043.2,3043.1,0.001]
[1763534871480,12.49257702,3043.2,3043.1,0.001]
[1763534872976,12.49257702,3043.2,3042.7,0.001]
[1763534872977,1.45289264,3043.1,3042.7,0.001]
[1763534873277,0.149,3042.8,3042.4,0.001]
[1763534873459,0.90699264,3042.5,3042.4,0.001]
[1763534873644,1.21400741,3042.5,3042.4,0.001]
[1763534873852,3.11044041,3042.5,3042.4,0.4523]
[1763534874253,3.62689658,3042.5,3042.4,0.4523]
[1763534874981,0.82347094,3042.5,3042.4,1.312904]
[1763534875179,0.71068788,3043.0,3042.5,0.405504]
[1763534875485,0.4551,3043.1,3043.0,0.856804]
[1763534875673,0.4551,3043.1,3043.0,0.4513]
[1763534875862,0.002,3043.2,3043.0,0.9064]
[1763534876063,0.002,3043.2,3043.1,0.6362]
[1763534876380,0.002,3043.2,3043.1,1.0913]
[1763534878463,0.51829908,3043.2,3043.1,1.0913]
[1763534879953,0.51829908,3043.2,3043.1,1.496804]